[Event "Titled Tuesday Blitz February 28 Early 2023"]
[White "Sreyas Payyappat"]
[Black "Martynov, Pavel"]
[WhiteFideId "46674969"]
[BlackFideId "4101260"]
[WhiteElo "2083"]
[BlackElo "2314"]
[Result "0-1"]
[Round "08"]
[TimeControl "180+2"]
[Date "2023.02.28"]
[WhiteClock "0:01:53"]
[BlackClock "0:02:27"]

1. e4 {[%clk 0:02:46]}  c5 {[%clk 0:02:59]} 2. Nf3 {[%clk 0:02:38]}  e6 {[%clk 0:02:59]} 3. d4 {[%clk 0:02:35]}  cxd4 {[%clk 0:02:59]} 4. Nxd4 {[%clk 0:02:34]}  Nc6 {[%clk 0:02:58]} 5. Nc3 {[%clk 0:02:31]}  Qc7 {[%clk 0:02:58]} 6. Be3 {[%clk 0:02:32]}  a6 {[%clk 0:02:56]} 7. Bd3 {[%clk 0:02:31]}  Nf6 {[%clk 0:02:53]} 8. O-O {[%clk 0:02:28]}  Ne5 {[%clk 0:02:54]} 9. h3 {[%clk 0:02:25]}  h5 {[%clk 0:02:50]} 10. f4 {[%clk 0:02:23]}  Nc4 {[%clk 0:02:40]} 11. Bxc4 {[%clk 0:02:11]}  Qxc4 {[%clk 0:02:41]} 12. e5 {[%clk 0:02:11]}  Nd5 {[%clk 0:02:38]} 13. Nxd5 {[%clk 0:02:10]}  Qxd5 {[%clk 0:02:38]} 14. b3 {[%clk 0:02:08]}  b5 {[%clk 0:02:38]} 15. Rc1 {[%clk 0:02:06]}  Bb7 {[%clk 0:02:35]} 16. Qe2 {[%clk 0:02:05]}  Rc8 {[%clk 0:02:35]} 17. c4 {[%clk 0:02:04]}  bxc4 {[%clk 0:02:31]} 18. bxc4 {[%clk 0:02:04]}  Qe4 {[%clk 0:02:31]} 19. Bf2 {[%clk 0:01:53]}  Qxg2# {[%clk 0:02:27]} 0-1


[Site "https://www.chess.com"]

[Event "Titled Tuesday Blitz February 28 Early 2023"]
[White "Dinu, Dumitru-Daniel"]
[Black "Poliakova, Varvara"]
[WhiteFideId "1208403"]
[BlackFideId "13518313"]
[WhiteElo "2240"]
[BlackElo "2075"]
[Result "0-1"]
[Round "08"]
[TimeControl "180+2"]
[Date "2023.02.28"]
[WhiteClock "0:00:01"]
[BlackClock "0:00:38"]

1. e4 {[%clk 0:02:54]}  e5 {[%clk 0:02:59]} 2. Nf3 {[%clk 0:02:54]}  Nc6 {[%clk 0:02:59]} 3. Bb5 {[%clk 0:02:53]}  a6 {[%clk 0:02:59]} 4. Ba4 {[%clk 0:02:53]}  Nf6 {[%clk 0:02:59]} 5. d3 {[%clk 0:02:53]}  b5 {[%clk 0:02:57]} 6. Bb3 {[%clk 0:02:53]}  d6 {[%clk 0:02:50]} 7. c3 {[%clk 0:02:53]}  Be7 {[%clk 0:02:51]} 8. O-O {[%clk 0:02:52]}  O-O {[%clk 0:02:51]} 9. Re1 {[%clk 0:02:52]}  Bb7 {[%clk 0:02:49]} 10. Nbd2 {[%clk 0:02:52]}  h6 {[%clk 0:02:46]} 11. Nf1 {[%clk 0:02:51]}  Re8 {[%clk 0:02:43]} 12. Ng3 {[%clk 0:02:51]}  Bf8 {[%clk 0:02:39]} 13. h3 {[%clk 0:02:50]}  g6 {[%clk 0:02:36]} 14. Nh4 {[%clk 0:02:44]}  d5 {[%clk 0:02:37]} 15. exd5 {[%clk 0:02:38]}  Nxd5 {[%clk 0:02:37]} 16. Qg4 {[%clk 0:02:29]}  Na5 {[%clk 0:02:34]} 17. Bxd5 {[%clk 0:02:04]}  Bxd5 {[%clk 0:02:34]} 18. Ne4 {[%clk 0:01:36]}  Bg7 {[%clk 0:02:26]} 19. Qg3 {[%clk 0:01:25]}  Nb7 {[%clk 0:02:19]} 20. Nf5 {[%clk 0:00:59]}  Bxe4 {[%clk 0:02:14]} 21. Nxg7 {[%clk 0:00:59]}  Kxg7 {[%clk 0:02:12]} 22. Rxe4 {[%clk 0:00:56]}  Qf6 {[%clk 0:02:04]} 23. Bd2 {[%clk 0:00:45]}  Nc5 {[%clk 0:01:54]} 24. Re3 {[%clk 0:00:41]}  Rad8 {[%clk 0:01:44]} 25. Rae1 {[%clk 0:00:40]}  e4 {[%clk 0:01:40]} 26. d4 {[%clk 0:00:36]}  Nd3 {[%clk 0:01:41]} 27. R1e2 {[%clk 0:00:30]}  c5 {[%clk 0:01:29]} 28. Rxe4 {[%clk 0:00:21]}  Rxe4 {[%clk 0:01:30]} 29. Rxe4 {[%clk 0:00:21]}  Nxb2 {[%clk 0:01:29]} 30. Bf4 {[%clk 0:00:15]}  Qf5 {[%clk 0:01:24]} 31. Re2 {[%clk 0:00:12]}  Nd3 {[%clk 0:01:22]} 32. Bc7 {[%clk 0:00:12]}  Rd7 {[%clk 0:01:20]} 33. Rd2 {[%clk 0:00:09]}  c4 {[%clk 0:01:19]} 34. Re2 {[%clk 0:00:07]}  b4 {[%clk 0:01:13]} 35. cxb4 {[%clk 0:00:07]}  Nxb4 {[%clk 0:01:13]} 36. Be5+ {[%clk 0:00:07]}  f6 {[%clk 0:01:11]} 37. Bd6 {[%clk 0:00:07]}  Nd5 {[%clk 0:01:06]} 38. Bc5 {[%clk 0:00:06]}  Qb1+ {[%clk 0:00:58]} 39. Kh2 {[%clk 0:00:06]}  c3 {[%clk 0:00:53]} 40. Re8 {[%clk 0:00:03]}  Qb7 {[%clk 0:00:47]} 41. Qd3 {[%clk 0:00:02]}  Nf4 {[%clk 0:00:45]} 42. Qg3 {[%clk 0:00:02]}  Qc7 {[%clk 0:00:40]} 43. Rf8 {[%clk 0:00:01]}  c2 {[%clk 0:00:38]} 0-1


[Site "https://www.chess.com"]

[Event "Titled Tuesday Blitz February 28 Early 2023"]
[White "Gabdrakhmanov, Azat"]
[Black "Heinemann, Josefine"]
[WhiteFideId "34189197"]
[BlackFideId "12900460"]
[WhiteElo "2315"]
[BlackElo "2342"]
[Result "1-0"]
[Round "08"]
[TimeControl "180+2"]
[Date "2023.02.28"]
[WhiteClock "0:02:08"]
[BlackClock "0:01:07"]

1. e4 {[%clk 0:03:00]}  e5 {[%clk 0:01:56]} 2. Nf3 {[%clk 0:02:58]}  Nc6 {[%clk 0:01:55]} 3. Bb5 {[%clk 0:02:58]}  a6 {[%clk 0:01:54]} 4. Ba4 {[%clk 0:02:57]}  Nf6 {[%clk 0:01:53]} 5. O-O {[%clk 0:02:58]}  Nxe4 {[%clk 0:01:53]} 6. d4 {[%clk 0:02:56]}  b5 {[%clk 0:01:51]} 7. Bb3 {[%clk 0:02:56]}  d5 {[%clk 0:01:51]} 8. dxe5 {[%clk 0:02:56]}  Be6 {[%clk 0:01:49]} 9. c3 {[%clk 0:02:56]}  Bc5 {[%clk 0:01:48]} 10. Nbd2 {[%clk 0:02:54]}  O-O {[%clk 0:01:44]} 11. Bc2 {[%clk 0:02:52]}  Nxf2 {[%clk 0:01:39]} 12. Rxf2 {[%clk 0:02:51]}  f6 {[%clk 0:01:38]} 13. Nb3 {[%clk 0:02:37]}  Bxf2+ {[%clk 0:01:36]} 14. Kxf2 {[%clk 0:02:38]}  fxe5 {[%clk 0:01:36]} 15. Kg1 {[%clk 0:02:38]}  Qd6 {[%clk 0:01:32]} 16. Be3 {[%clk 0:02:31]}  Rad8 {[%clk 0:01:30]} 17. Bc5 {[%clk 0:02:30]}  Qd7 {[%clk 0:01:31]} 18. Bxf8 {[%clk 0:02:29]}  Rxf8 {[%clk 0:01:32]} 19. Ng5 {[%clk 0:02:27]}  Bf5 {[%clk 0:01:13]} 20. Bxf5 {[%clk 0:02:23]}  Qxf5 {[%clk 0:01:13]} 21. Qxd5+ {[%clk 0:02:18]}  Kh8 {[%clk 0:01:12]} 22. Nf3 {[%clk 0:02:10]}  Ne7 {[%clk 0:01:07]} 23. Qxe5 {[%clk 0:02:08]} 1-0


[Site "https://www.chess.com"]

[Event "Titled Tuesday Blitz February 28 Early 2023"]
[White "Avazkhonov, Alikhon"]
[Black "Shapiro, Viktor"]
[WhiteFideId "14208504"]
[BlackFideId "4175700"]
[WhiteElo "1739"]
[BlackElo "2132"]
[Result "0-1"]
[Round "08"]
[TimeControl "180+2"]
[Date "2023.02.28"]
[WhiteClock "0:00:01"]
[BlackClock "0:00:28"]

1. d4 {[%clk 0:02:59]}  Nf6 {[%clk 0:03:00]} 2. c4 {[%clk 0:02:58]}  c5 {[%clk 0:03:00]} 3. d5 {[%clk 0:02:58]}  e6 {[%clk 0:03:00]} 4. Nc3 {[%clk 0:02:59]}  exd5 {[%clk 0:03:01]} 5. cxd5 {[%clk 0:03:00]}  d6 {[%clk 0:03:01]} 6. e4 {[%clk 0:03:00]}  g6 {[%clk 0:03:01]} 7. f4 {[%clk 0:03:01]}  Bg7 {[%clk 0:03:02]} 8. Bb5+ {[%clk 0:03:02]}  Nfd7 {[%clk 0:03:02]} 9. a4 {[%clk 0:03:01]}  O-O {[%clk 0:03:02]} 10. Nf3 {[%clk 0:03:01]}  a6 {[%clk 0:03:01]} 11. Be2 {[%clk 0:03:00]}  Re8 {[%clk 0:03:02]} 12. O-O {[%clk 0:03:00]}  Nf6 {[%clk 0:03:02]} 13. Bd3 {[%clk 0:02:35]}  Bg4 {[%clk 0:03:02]} 14. h3 {[%clk 0:02:33]}  Bxf3 {[%clk 0:03:02]} 15. Qxf3 {[%clk 0:02:34]}  Nbd7 {[%clk 0:03:02]} 16. Kh1 {[%clk 0:02:23]}  Qc7 {[%clk 0:02:53]} 17. e5 {[%clk 0:01:56]}  dxe5 {[%clk 0:02:52]} 18. f5 {[%clk 0:01:56]}  c4 {[%clk 0:02:49]} 19. Bc2 {[%clk 0:01:55]}  Nc5 {[%clk 0:02:39]} 20. Bg5 {[%clk 0:01:29]}  e4 {[%clk 0:02:39]} 21. Qe3 {[%clk 0:01:29]}  Nh5 {[%clk 0:02:13]} 22. Bh4 {[%clk 0:01:08]}  Be5 {[%clk 0:01:36]} 23. d6 {[%clk 0:00:46]}  Bxd6 {[%clk 0:01:32]} 24. Nd5 {[%clk 0:00:46]}  Qc6 {[%clk 0:01:32]} 25. fxg6 {[%clk 0:00:23]}  fxg6 {[%clk 0:01:25]} 26. Rad1 {[%clk 0:00:20]}  Nd3 {[%clk 0:01:21]} 27. Qd4 {[%clk 0:00:16]}  Re5 {[%clk 0:01:06]} 28. Bxd3 {[%clk 0:00:11]}  exd3 {[%clk 0:01:03]} 29. Qxe5 {[%clk 0:00:11]}  Bxe5 {[%clk 0:01:03]} 30. Ne7+ {[%clk 0:00:12]}  Kg7 {[%clk 0:01:03]} 31. Nxc6 {[%clk 0:00:13]}  bxc6 {[%clk 0:01:04]} 32. Rc1 {[%clk 0:00:14]}  c3 {[%clk 0:00:56]} 33. bxc3 {[%clk 0:00:13]}  Bg3 {[%clk 0:00:51]} 34. Be7 {[%clk 0:00:11]}  Re8 {[%clk 0:00:50]} 35. Bc5 {[%clk 0:00:11]}  Bf4 {[%clk 0:00:47]} 36. Bd4+ {[%clk 0:00:11]}  Kh6 {[%clk 0:00:46]} 37. Rb1 {[%clk 0:00:04]}  Ng3+ {[%clk 0:00:46]} 38. Kg1 {[%clk 0:00:04]}  Nxf1 {[%clk 0:00:45]} 39. Kxf1 {[%clk 0:00:05]}  d2 {[%clk 0:00:37]} 40. Rd1 {[%clk 0:00:06]}  Kg5 {[%clk 0:00:32]} 41. Kf2 {[%clk 0:00:05]}  Kf5 {[%clk 0:00:30]} 42. g3 {[%clk 0:00:05]}  Bh6 {[%clk 0:00:29]} 43. c4 {[%clk 0:00:03]}  Ke4 {[%clk 0:00:29]} 44. Bb6 {[%clk 0:00:01]}  Kd3 {[%clk 0:00:28]} 0-1


[Site "https://www.chess.com"]

[Event "Titled Tuesday Blitz February 28 Early 2023"]
[White "Djokovic, Nebojsa"]
[Black "Todorovic, Bojan"]
[WhiteFideId "938300"]
[BlackFideId "917087"]
[WhiteElo "2595"]
[BlackElo "2266"]
[Result "0-1"]
[Round "08"]
[TimeControl "180+2"]
[Date "2023.02.28"]
[WhiteClock "0:00:08"]
[BlackClock "0:00:10"]

1. c4 {[%clk 0:02:51]}  Nf6 {[%clk 0:02:59]} 2. Nf3 {[%clk 0:02:51]}  g6 {[%clk 0:02:58]} 3. g3 {[%clk 0:02:51]}  Bg7 {[%clk 0:02:58]} 4. Bg2 {[%clk 0:02:52]}  O-O {[%clk 0:02:58]} 5. O-O {[%clk 0:02:53]}  c6 {[%clk 0:02:58]} 6. e3 {[%clk 0:02:30]}  d6 {[%clk 0:02:42]} 7. d4 {[%clk 0:02:28]}  Qa5 {[%clk 0:02:35]} 8. Nc3 {[%clk 0:02:24]}  Qh5 {[%clk 0:02:33]} 9. Re1 {[%clk 0:02:11]}  Bg4 {[%clk 0:02:32]} 10. e4 {[%clk 0:01:57]}  e5 {[%clk 0:02:24]} 11. dxe5 {[%clk 0:01:33]}  dxe5 {[%clk 0:02:24]} 12. Qd3 {[%clk 0:01:33]}  Na6 {[%clk 0:02:17]} 13. Nd2 {[%clk 0:01:05]}  Nb4 {[%clk 0:02:08]} 14. Qb1 {[%clk 0:01:05]}  Rad8 {[%clk 0:02:03]} 15. Bf1 {[%clk 0:00:53]}  Bh6 {[%clk 0:01:47]} 16. a3 {[%clk 0:00:35]}  Bxd2 {[%clk 0:01:22]} 17. Bxd2 {[%clk 0:00:35]}  Rxd2 {[%clk 0:01:21]} 18. axb4 {[%clk 0:00:35]}  Bf3 {[%clk 0:01:09]} 19. h4 {[%clk 0:00:24]}  Ng4 {[%clk 0:01:05]} 20. Be2 {[%clk 0:00:24]}  Bxe2 {[%clk 0:00:49]} 21. Rxe2 {[%clk 0:00:20]}  Rfd8 {[%clk 0:00:42]} 22. Qe1 {[%clk 0:00:19]}  R2d3 {[%clk 0:00:29]} 23. Rd1 {[%clk 0:00:15]}  Nf6 {[%clk 0:00:28]} 24. Rxd3 {[%clk 0:00:07]}  Rxd3 {[%clk 0:00:28]} 25. Rd2 {[%clk 0:00:08]}  Rd4 {[%clk 0:00:28]} 26. Qe3 {[%clk 0:00:03]}  Ng4 {[%clk 0:00:26]} 27. Qe2 {[%clk 0:00:02]}  Nf6 {[%clk 0:00:21]} 28. Qxh5 {[%clk 0:00:02]}  gxh5 {[%clk 0:00:19]} 29. Rxd4 {[%clk 0:00:03]}  exd4 {[%clk 0:00:19]} 30. Nd1 {[%clk 0:00:02]}  Nxe4 {[%clk 0:00:19]} 31. Kf1 {[%clk 0:00:02]}  Nd2+ {[%clk 0:00:19]} 32. Ke2 {[%clk 0:00:03]}  Nxc4 {[%clk 0:00:19]} 33. Kd3 {[%clk 0:00:04]}  Nb6 {[%clk 0:00:14]} 34. Kxd4 {[%clk 0:00:04]}  Nd7 {[%clk 0:00:14]} 35. Ne3 {[%clk 0:00:03]}  Kg7 {[%clk 0:00:12]} 36. Ng2 {[%clk 0:00:04]}  Kf6 {[%clk 0:00:11]} 37. Nf4 {[%clk 0:00:04]}  Kf5 {[%clk 0:00:10]} 38. Nxh5 {[%clk 0:00:04]}  Kg4 {[%clk 0:00:09]} 39. Nf4 {[%clk 0:00:02]}  Kf3 {[%clk 0:00:10]} 40. Nh3 {[%clk 0:00:01]}  Kg2 {[%clk 0:00:09]} 41. Ng5 {[%clk 0:00:02]}  Kxf2 {[%clk 0:00:08]} 42. g4 {[%clk 0:00:02]}  Kg3 {[%clk 0:00:07]} 43. Nxh7 {[%clk 0:00:01]}  Kxh4 {[%clk 0:00:07]} 44. g5 {[%clk 0:00:02]}  Kh5 {[%clk 0:00:07]} 45. Ke4 {[%clk 0:00:02]}  Kg6 {[%clk 0:00:07]} 46. Nf6 {[%clk 0:00:02]}  Nxf6+ {[%clk 0:00:07]} 47. gxf6 {[%clk 0:00:02]}  Kxf6 {[%clk 0:00:07]} 48. Kf4 {[%clk 0:00:03]}  Ke6 {[%clk 0:00:08]} 49. Ke4 {[%clk 0:00:04]}  f5+ {[%clk 0:00:07]} 50. Kf4 {[%clk 0:00:04]}  Kd5 {[%clk 0:00:07]} 51. Kxf5 {[%clk 0:00:04]}  Kc4 {[%clk 0:00:07]} 52. Ke6 {[%clk 0:00:05]}  Kxb4 {[%clk 0:00:08]} 53. Kd7 {[%clk 0:00:06]}  Kb3 {[%clk 0:00:08]} 54. Kc7 {[%clk 0:00:06]}  Kxb2 {[%clk 0:00:08]} 55. Kxb7 {[%clk 0:00:07]}  c5 {[%clk 0:00:09]} 56. Kxa7 {[%clk 0:00:08]}  c4 {[%clk 0:00:09]} 57. Kb6 {[%clk 0:00:08]}  c3 {[%clk 0:00:10]} 0-1


[Site "https://www.chess.com"]

[Event "Titled Tuesday Blitz February 28 Early 2023"]
[White "Pinheiro, Iung Alicio de O."]
[Black "Begunov, Konstantin"]
[WhiteFideId "2104350"]
[BlackFideId "4118510"]
[WhiteElo "2283"]
[BlackElo "2118"]
[Result "0-1"]
[Round "08"]
[TimeControl "180+2"]
[Date "2023.02.28"]
[WhiteClock "0:00:01"]
[BlackClock "0:00:03"]

1. e4 {[%clk 0:03:00]}  c5 {[%clk 0:02:59]} 2. Nf3 {[%clk 0:03:00]}  d6 {[%clk 0:02:59]} 3. Nc3 {[%clk 0:02:59]}  a6 {[%clk 0:02:59]} 4. a3 {[%clk 0:02:53]}  Nf6 {[%clk 0:02:58]} 5. e5 {[%clk 0:02:51]}  dxe5 {[%clk 0:02:58]} 6. Nxe5 {[%clk 0:02:52]}  Nbd7 {[%clk 0:02:56]} 7. d4 {[%clk 0:02:10]}  cxd4 {[%clk 0:02:49]} 8. Qxd4 {[%clk 0:02:10]}  Nxe5 {[%clk 0:02:47]} 9. Qxe5 {[%clk 0:02:09]}  e6 {[%clk 0:02:47]} 10. Bf4 {[%clk 0:02:04]}  Qb6 {[%clk 0:02:44]} 11. O-O-O {[%clk 0:02:01]}  Qxf2 {[%clk 0:02:39]} 12. Bb5+ {[%clk 0:00:54]}  Nd7 {[%clk 0:01:43]} 13. Qc7 {[%clk 0:00:39]}  axb5 {[%clk 0:01:33]} 14. Nxb5 {[%clk 0:00:36]}  Be7 {[%clk 0:01:13]} 15. Bd6 {[%clk 0:00:17]}  Qb6 {[%clk 0:00:23]} 16. Qc4 {[%clk 0:00:17]}  Bxd6 {[%clk 0:00:15]} 17. Nxd6+ {[%clk 0:00:18]}  Ke7 {[%clk 0:00:15]} 18. Rhf1 {[%clk 0:00:15]}  f6 {[%clk 0:00:14]} 19. Qg4 {[%clk 0:00:13]}  Rg8 {[%clk 0:00:12]} 20. Qh5 {[%clk 0:00:11]}  Ne5 {[%clk 0:00:08]} 21. Qxh7 {[%clk 0:00:08]}  Bd7 {[%clk 0:00:08]} 22. Qe4 {[%clk 0:00:05]}  Bc6 {[%clk 0:00:06]} 23. Qe2 {[%clk 0:00:05]}  Rad8 {[%clk 0:00:06]} 24. Ne4 {[%clk 0:00:03]}  Bxe4 {[%clk 0:00:05]} 25. Qxe4 {[%clk 0:00:03]}  Qc6 {[%clk 0:00:06]} 26. Qe3 {[%clk 0:00:03]}  Rxd1+ {[%clk 0:00:06]} 27. Rxd1 {[%clk 0:00:03]}  Rc8 {[%clk 0:00:06]} 28. Qd2 {[%clk 0:00:02]}  Kf7 {[%clk 0:00:05]} 29. Kb1 {[%clk 0:00:02]}  Rc7 {[%clk 0:00:05]} 30. Qe2 {[%clk 0:00:02]}  Rd7 {[%clk 0:00:06]} 31. Qh5+ {[%clk 0:00:02]}  Kf8 {[%clk 0:00:05]} 32. Re1 {[%clk 0:00:03]}  Qd5 {[%clk 0:00:04]} 33. Qh8+ {[%clk 0:00:03]}  Kf7 {[%clk 0:00:05]} 34. Qh5+ {[%clk 0:00:03]}  Ke7 {[%clk 0:00:04]} 35. Qh7 {[%clk 0:00:03]}  Kd6 {[%clk 0:00:04]} 36. h4 {[%clk 0:00:03]}  Kc7 {[%clk 0:00:04]} 37. Qh5 {[%clk 0:00:04]}  Nc4 {[%clk 0:00:03]} 38. Qg6 {[%clk 0:00:03]}  Qd4 {[%clk 0:00:03]} 39. c3 {[%clk 0:00:01]}  Qd2 {[%clk 0:00:03]} 0-1


[Site "https://www.chess.com"]

[Event "Titled Tuesday Blitz February 28 Early 2023"]
[White "Ordekalog"]
[Black "Prieto Aranguren, Alain"]
[BlackFideId "2268906"]
[WhiteElo "2579"]
[BlackElo "2209"]
[Result "1-0"]
[Round "08"]
[TimeControl "180+2"]
[Date "2023.02.28"]
[WhiteClock "0:01:05"]
[BlackClock "0:01:17"]

1. d4 {[%clk 0:03:00]}  Nf6 {[%clk 0:02:58]} 2. c4 {[%clk 0:03:00]}  g6 {[%clk 0:02:53]} 3. Nc3 {[%clk 0:02:59]}  Bg7 {[%clk 0:02:53]} 4. Nf3 {[%clk 0:02:58]}  O-O {[%clk 0:02:54]} 5. Bg5 {[%clk 0:02:57]}  c5 {[%clk 0:02:53]} 6. e3 {[%clk 0:02:56]}  cxd4 {[%clk 0:02:53]} 7. exd4 {[%clk 0:02:55]}  d5 {[%clk 0:02:54]} 8. Be2 {[%clk 0:02:51]}  Nc6 {[%clk 0:02:53]} 9. O-O {[%clk 0:02:51]}  dxc4 {[%clk 0:02:49]} 10. Bxc4 {[%clk 0:02:50]}  Bg4 {[%clk 0:02:49]} 11. d5 {[%clk 0:02:49]}  Ne5 {[%clk 0:02:46]} 12. Be2 {[%clk 0:02:48]}  Nxf3+ {[%clk 0:02:38]} 13. Bxf3 {[%clk 0:02:49]}  Bxf3 {[%clk 0:02:38]} 14. Qxf3 {[%clk 0:02:49]}  Qb6 {[%clk 0:02:36]} 15. Rfe1 {[%clk 0:02:40]}  Rfe8 {[%clk 0:02:27]} 16. Rad1 {[%clk 0:02:34]}  Rac8 {[%clk 0:02:23]} 17. Re2 {[%clk 0:02:25]}  h6 {[%clk 0:02:13]} 18. Bh4 {[%clk 0:02:23]}  Rc4 {[%clk 0:02:05]} 19. Bxf6 {[%clk 0:01:48]}  Bxf6 {[%clk 0:01:53]} 20. Ne4 {[%clk 0:01:47]}  Bxb2 {[%clk 0:01:43]} 21. d6 {[%clk 0:01:31]}  Rc1 {[%clk 0:01:34]} 22. Rxc1 {[%clk 0:01:24]}  Bxc1 {[%clk 0:01:34]} 23. Nf6+ {[%clk 0:01:22]}  exf6 {[%clk 0:01:29]} 24. Rxe8+ {[%clk 0:01:22]}  Kg7 {[%clk 0:01:29]} 25. d7 {[%clk 0:01:22]}  Bd2 {[%clk 0:01:17]} 26. Qd1 {[%clk 0:01:05]} 1-0


[Site "https://www.chess.com"]

[Event "Titled Tuesday Blitz February 28 Early 2023"]
[White "Omelja, Artem"]
[Black "Spata, German"]
[WhiteFideId "14119846"]
[BlackFideId "113026"]
[WhiteElo "2404"]
[BlackElo "2238"]
[Result "1/2-1/2"]
[Round "08"]
[TimeControl "180+2"]
[Date "2023.02.28"]
[WhiteClock "0:00:15"]
[BlackClock "0:00:18"]

1. e4 {[%clk 0:03:00]}  d5 {[%clk 0:02:58]} 2. exd5 {[%clk 0:03:00]}  Qxd5 {[%clk 0:02:58]} 3. Nc3 {[%clk 0:03:01]}  Qd8 {[%clk 0:02:58]} 4. Nf3 {[%clk 0:02:59]}  Nf6 {[%clk 0:02:58]} 5. d4 {[%clk 0:02:58]}  Bg4 {[%clk 0:02:58]} 6. Be2 {[%clk 0:02:58]}  e6 {[%clk 0:02:58]} 7. h3 {[%clk 0:02:57]}  Bh5 {[%clk 0:02:58]} 8. O-O {[%clk 0:02:55]}  Nbd7 {[%clk 0:02:56]} 9. Bg5 {[%clk 0:02:53]}  Be7 {[%clk 0:02:56]} 10. Qd2 {[%clk 0:02:50]}  c6 {[%clk 0:02:54]} 11. Rad1 {[%clk 0:02:49]}  O-O {[%clk 0:02:53]} 12. Rfe1 {[%clk 0:02:49]}  Re8 {[%clk 0:02:50]} 13. Ne5 {[%clk 0:02:47]}  Bxe2 {[%clk 0:02:49]} 14. Rxe2 {[%clk 0:02:47]}  Nxe5 {[%clk 0:02:48]} 15. dxe5 {[%clk 0:02:48]}  Qxd2 {[%clk 0:02:47]} 16. Rexd2 {[%clk 0:02:44]}  Nd5 {[%clk 0:02:47]} 17. Bxe7 {[%clk 0:02:42]}  Rxe7 {[%clk 0:02:31]} 18. Ne4 {[%clk 0:02:42]}  f5 {[%clk 0:02:10]} 19. exf6 {[%clk 0:02:42]}  Nxf6 {[%clk 0:02:10]} 20. Rd8+ {[%clk 0:02:13]}  Rxd8 {[%clk 0:02:04]} 21. Rxd8+ {[%clk 0:02:13]}  Kf7 {[%clk 0:02:04]} 22. Nd6+ {[%clk 0:02:12]}  Kg6 {[%clk 0:01:59]} 23. c4 {[%clk 0:02:09]}  b6 {[%clk 0:01:54]} 24. b3 {[%clk 0:02:05]}  Rd7 {[%clk 0:01:51]} 25. Rxd7 {[%clk 0:02:05]}  Nxd7 {[%clk 0:01:52]} 26. f3 {[%clk 0:01:57]}  Kf6 {[%clk 0:01:52]} 27. Kf2 {[%clk 0:01:54]}  Ke5 {[%clk 0:01:53]} 28. Nc8 {[%clk 0:01:54]}  Kd4 {[%clk 0:01:42]} 29. Nxa7 {[%clk 0:01:53]}  c5 {[%clk 0:01:43]} 30. Nb5+ {[%clk 0:01:19]}  Kd3 {[%clk 0:01:42]} 31. Nc7 {[%clk 0:01:19]}  e5 {[%clk 0:01:36]} 32. Nd5 {[%clk 0:00:47]}  Kc2 {[%clk 0:01:33]} 33. Ke3 {[%clk 0:00:47]}  Kb2 {[%clk 0:01:33]} 34. Ke4 {[%clk 0:00:47]}  Kxa2 {[%clk 0:01:32]} 35. b4 {[%clk 0:00:48]}  cxb4 {[%clk 0:01:19]} 36. Nxb4+ {[%clk 0:00:37]}  Kb3 {[%clk 0:01:20]} 37. Nd5 {[%clk 0:00:22]}  Kxc4 {[%clk 0:01:20]} 38. Nxb6+ {[%clk 0:00:15]}  Nxb6 {[%clk 0:01:20]} 39. Kxe5 {[%clk 0:00:15]}  Nd5 {[%clk 0:01:12]} 40. Ke6 {[%clk 0:00:15]}  Nf4+ {[%clk 0:00:46]} 41. Kf7 {[%clk 0:00:15]}  Nxg2 {[%clk 0:00:46]} 42. Kxg7 {[%clk 0:00:16]}  h5 {[%clk 0:00:47]} 43. Kg6 {[%clk 0:00:12]}  h4 {[%clk 0:00:46]} 44. f4 {[%clk 0:00:05]}  Nxf4+ {[%clk 0:00:36]} 45. Kg5 {[%clk 0:00:05]}  Ng2 {[%clk 0:00:36]} 46. Kg4 {[%clk 0:00:06]}  Kd4 {[%clk 0:00:35]} 47. Kf3 {[%clk 0:00:05]}  Ne1+ {[%clk 0:00:19]} 48. Kg4 {[%clk 0:00:05]}  Ng2 {[%clk 0:00:14]} 49. Kf3 {[%clk 0:00:05]}  Kd3 {[%clk 0:00:08]} 50. Kxg2 {[%clk 0:00:05]}  Ke2 {[%clk 0:00:09]} 51. Kh2 {[%clk 0:00:05]}  Kf2 {[%clk 0:00:09]} 52. Kh1 {[%clk 0:00:06]}  Kg3 {[%clk 0:00:10]} 53. Kg1 {[%clk 0:00:07]}  Kxh3 {[%clk 0:00:10]} 54. Kh1 {[%clk 0:00:08]}  Kg3 {[%clk 0:00:11]} 55. Kg1 {[%clk 0:00:09]}  Kg4 {[%clk 0:00:12]} 56. Kh1 {[%clk 0:00:10]}  Kh5 {[%clk 0:00:13]} 57. Kg1 {[%clk 0:00:10]}  Kg5 {[%clk 0:00:14]} 58. Kh1 {[%clk 0:00:11]}  Kg4 {[%clk 0:00:15]} 59. Kg1 {[%clk 0:00:12]}  h3 {[%clk 0:00:16]} 60. Kh1 {[%clk 0:00:13]}  Kh4 {[%clk 0:00:17]} 61. Kg1 {[%clk 0:00:14]}  Kg3 {[%clk 0:00:17]} 62. Kh1 {[%clk 0:00:15]}  h2 {[%clk 0:00:18]} 1/2-1/2


[Site "https://www.chess.com"]

[Event "Titled Tuesday Blitz February 28 Early 2023"]
[White "Sernecki, Franciszek"]
[Black "Aldokhin, Ivan"]
[WhiteFideId "1169297"]
[BlackFideId "24115720"]
[WhiteElo "2210"]
[BlackElo "2322"]
[Result "0-1"]
[Round "08"]
[TimeControl "180+2"]
[Date "2023.02.28"]
[WhiteClock "0:01:35"]
[BlackClock "0:01:43"]

1. c4 {[%clk 0:03:00]}  Nf6 {[%clk 0:02:55]} 2. Nc3 {[%clk 0:03:01]}  g6 {[%clk 0:02:55]} 3. g3 {[%clk 0:03:00]}  Bg7 {[%clk 0:02:54]} 4. Bg2 {[%clk 0:03:01]}  e5 {[%clk 0:02:55]} 5. e4 {[%clk 0:03:02]}  O-O {[%clk 0:02:54]} 6. Nge2 {[%clk 0:03:03]}  d6 {[%clk 0:02:50]} 7. O-O {[%clk 0:03:04]}  Nc6 {[%clk 0:02:49]} 8. d3 {[%clk 0:03:05]}  Be6 {[%clk 0:02:49]} 9. h3 {[%clk 0:03:05]}  Nd7 {[%clk 0:02:48]} 10. f4 {[%clk 0:03:05]}  f5 {[%clk 0:02:48]} 11. Be3 {[%clk 0:03:04]}  Nc5 {[%clk 0:02:41]} 12. fxe5 {[%clk 0:03:00]}  Nxe5 {[%clk 0:02:41]} 13. Nf4 {[%clk 0:02:22]}  Bd7 {[%clk 0:02:36]} 14. b3 {[%clk 0:02:13]}  g5 {[%clk 0:02:05]} 15. Bxc5 {[%clk 0:02:04]}  dxc5 {[%clk 0:01:51]} 16. Nfd5 {[%clk 0:01:40]}  c6 {[%clk 0:01:49]} 17. Ne3 {[%clk 0:01:39]}  f4 {[%clk 0:01:49]} 18. Ng4 {[%clk 0:01:35]}  Nxg4 {[%clk 0:01:44]} 19. hxg4 {[%clk 0:01:35]}  Bxc3 {[%clk 0:01:43]} 0-1


[Site "https://www.chess.com"]